Cogmind - Beta 17 @@@ ROGUE MODE // 2026.08.14 @ 00:20:06 Player: Sasha Result: Destroyed by X3-RSZ(x) with Makeshift Spear Performance ------------- Evolutions (0) 0 Regions Visited (4) 800 Robots Destroyed (30) 150 Value Destroyed (890) 890 Prototype IDs (6) 120 Alien Tech Used (0) 0 Bonus (800) 800 TOTAL SCORE: 2760 Bonus ------- Registered with UFD 300 Met Optimus in HQ 500 Cogmind --------- Core Integrity 0/250 Matter 300/300 Energy 121/125 System Corruption 0% Temperature Cool (2) Movement Walking (120) Location -9/Scraptown Parts ------- > --- POWER (1) -------- Light Ion Engine > --- PROPULSION (2) --- Aluminum Leg Aluminum Leg > --- UTILITY (2) ------ Small Storage Unit Light Armor Plating > --- WEAPON (2) ------- Subdweller Shrapnel Launcher > --- INVENTORY (8) ---- Improved Heat Sink Small Storage Unit Subdweller Optics Sensor Array Signal Interpreter Authchip [Weapon] Particle Gun Plasma Cutter Peak State ------------ > --- POWER ------------ Light Ion Engine > --- PROPULSION ------- Aluminum Leg Aluminum Leg > --- UTILITY ---------- Small Storage Unit Makeshift System Restoration Module > --- WEAPON ----------- Medium Laser Subdweller Shrapnel Launcher > --- INVENTORY -------- Improved Heat Sink Subdweller Optics Sensor Array Signal Interpreter Light Armor Plating Small Laser Particle Gun Shrapnel Trap [Rating: 12] Favorites ----------- Power Light Ion Engine Engine Light Ion Engine Propulsion Aluminum Leg Leg Aluminum Leg Utility Small Storage Unit Device Improved Heat Sink Storage Small Storage Unit Protection Light Armor Plating Weapon Subdweller Shrapnel Launcher Energy Gun Medium Laser Launcher Subdweller Shrapnel Launcher Special Weapon Mining Laser Build | -11 -10 -10 -9 -9 ------- Run | Yrd Mat Sub Rec Scr Slots Evolved . | . . . . . Power . | . . . . . Propulsion . | . . . . . Utility . | . . . . . Weapon . | . . . . . Parts Attached 24 | 7 8 8 1 . Power 2 | 1 1 . . . Engine 2 | 1 1 . . . Core . | . . . . . Reactor . | . . . . . Propulsion 6 | 2 3 1 . . Treads . | . . . . . Leg 6 | 2 3 1 . . Wheel . | . . . . . Hover . | . . . . . Flight . | . . . . . Utility 7 | 2 1 3 1 . Device 3 | 1 1 1 . . Storage 2 | 1 . . 1 . Processor . | . . . . . Hackware . | . . . . . Protection 2 | . . 2 . . Artifact . | . . . . . Weapon 9 | 2 3 4 . . Energy Gun 6 | 2 2 2 . . Energy Cannon . | . . . . . Ballistic Gun . | . . . . . Ballistic Cannon . | . . . . . Launcher 2 | . . 2 . . Special Weapon 1 | . 1 . . . Impact Weapon . | . . . . . Slashing Weapon . | . . . . . Piercing Weapon . | . . . . . Special Melee Weapon . | . . . . . Unidentified Prototypes . | . . . . . Parts Lost 6 | . 2 4 . . Power . | . . . . . Propulsion 1 | . . 1 . . Utility 2 | . 1 1 . . Weapon 3 | . 1 2 . . Highest Loss Streak 1 | . 1 1 . . To Critical Strikes . | . . . . . Average Backups 7 | 1 6 7 7 8 Power . | . . . . . Propulsion . | . 2 1 . . Utility 3 | . . 4 5 6 Weapon 1 | . 2 1 1 1 Tool/Special . | . . . . . Unused Backups 5 | . . . . 5 Power . | . . . . . Propulsion . | . . . . . Utility 4 | . . . . 4 Weapon . | . . . . . Tool/Special 1 | . . . . 1 Average Slot Usage (%) 94 | . 98 99 93 85 Engine 12 | . 14 13 7 14 Leg 27 | . 28 27 28 28 Device 3 | . 13 . . . Storage 14 | . 14 14 14 14 Protection 10 | . . 13 14 14 Energy Gun 17 | . 27 21 16 . Launcher 7 | . . 5 11 14 Peak Build Rating 12 | 7 10 12 10 8 Average Rating 8 | 5 9 8 9 8 On Entrance 7 | . 7 10 9 10 Avg Prop Armor Cover (%) . | . . . . . Naked Turns . | . . . . . Heaviest Build 23 | 12 14 21 23 19 Greatest Support 20 | 20 20 20 20 20 Greatest Overweight (x) 1 | 1 . 1 1 . Average Overweight (x) . | . . . . . Largest Inventory Capacity 8 | 8 8 8 8 8 Average Capacity 7 | 7 8 8 8 8 Most Carried 8 | 3 8 8 8 8 Average Carried 7 | 1 6 7 7 8 Final Capacity 8 | 8 8 8 8 8 Final Carried 8 | 3 8 8 8 8 Class Distribution -------------------- 93% | Mutant 6% | Scavenger-Mutant Dominant Class ---------------- Mutant | -10/Materials Mutant | -10/Subcaves Mutant | -9/Recycling Mutant | -9/Scraptown Resources | -11 -10 -10 -9 -9 ----------- Run | Yrd Mat Sub Rec Scr Matter Collected 744 | 270 134 190 150 . Remotely . | . . . . . Salvage Created 1016 | 86 408 357 165 . Parts 60 | 11 19 21 9 . Haulers Intercepted . | . . . . . Recyclers Shooed . | . . . . . Parts Field Recycled . | . . . . . Retrieved Matter . | . . . . . Parts Self-Destructed 14 | . . 14 . . Prevented . | . . . . . Parts Restored . | . . . . . Kills | -11 -10 -10 -9 -9 ------- Run | Yrd Mat Sub Rec Scr Combat Hostiles Destroyed 24 | . 9 12 3 . Guns 17 | . 9 8 . . AOE 7 | . . 4 3 . Classes Destroyed 7 | 1 2 2 2 . Tunneler 4 | 4 . . . . Recycler 1 | . . . 1 . Watcher 1 | . 1 . . . Swarmer 5 | . . 5 . . Grunt 9 | . 9 . . . Sentry 3 | . . . 3 . Subdweller 7 | . . 7 . . Best Kill Streak 4 | 4 2 4 2 . Combat Bots Only 4 | . 2 4 1 . Max Kills in Single Turn 2 | 2 1 1 2 . Gunslinging . | . . . . . Exploded 1 | . . 1 1 . Melee . | . . . . . Uniques/NPCs Destroyed . | . . . . . Combat | -11 -10 -10 -9 -9 -------- Run | Yrd Mat Sub Rec Scr Hostile Shots Fired 147 | . 42 98 4 3 Missed 46 | . 7 37 2 . Hits 101 | . 35 61 2 3 Melee 1 | . . . . 1 Projectile 100 | . 35 61 2 2 Critical Strikes 1 | . . 1 . . Damage Taken 1258 | 12 431 738 31 46 Core 274 | . 89 124 15 46 Absorbed by Shields . | . . . . . Core Remaining (%) 100 | 100 . . . . Volleys Fired 74 | 4 32 33 5 . Largest 2 | 2 2 2 2 . Hottest 165 | 80 165 110 100 . Shots Fired 145 | 8 63 66 8 . Gun 130 | 8 61 58 3 . Cannon . | . . . . . Launcher 13 | . . 8 5 . Special 2 | . 2 . . . Kinetic 6 | . . 1 5 . Thermal 119 | 4 54 58 3 . Explosive 7 | . . 7 . . Electromagnetic 13 | 4 9 . . . Robot Hit Streak 16 | 6 5 16 3 . Robot Miss Streak 4 | . 3 4 2 . Penetration Max . | . . . . . Secondary Targets 2 | . . 2 . . Max Gunslinging Chain 1 | . . 1 . . Shots Hit Robots 91 | 6 39 43 3 . Core Hits 47 | 3 19 19 6 . Critical Kills . | . . . . . Critical Parts Destroyed . | . . . . . Critical Strikes 3 | . . 2 1 . Burn 2 | . . 2 . . Destroy 1 | . . . 1 . Melee Attacks . | . . . . . Impact . | . . . . . Slashing . | . . . . . Piercing . | . . . . . Sneak Attacks . | . . . . . Combat Hostiles . | . . . . . Follow-up Attacks . | . . . . . Damage Inflicted 1952 | 142 530 892 388 . Guns 1092 | 68 530 474 20 . Cannons . | . . . . . Explosions 860 | 74 . 418 368 . Melee . | . . . . . Ramming . | . . . . . Kinetic 368 | . . . 368 . Thermal 1023 | 84 445 474 20 . Explosive 418 | . . 418 . . Electromagnetic 143 | 58 85 . . . Impact . | . . . . . Slashing . | . . . . . Piercing . | . . . . . Highest Corruption 1 | . 1 1 . . Average Corruption 1 | . 1 1 . . Corruption Purged 1 | . . 1 . . Corruption Blocked . | . . . . . Effects 16 | . 7 9 . . Message Errors 4 | . 3 1 . . Matter Fused 4 | . 2 2 . . Heat Flow Errors 1 | . . 1 . . Parts Fused 2 | . . 2 . . Data Loss (minor) 1 | . . 1 . . Data Loss (major) 2 | . 1 1 . . Misfires 2 | . 1 1 . . Overload Shots . | . . . . . Overflow Damage 23 | 17 . 6 . . Projectiles . | . . . . . Explosions 23 | 17 . 6 . . Melee . | . . . . . Knockbacks . | . . . . . Impact . | . . . . . Kinetic . | . . . . . Secondary . | . . . . . Self-Inflicted Damage 55 | 12 . 43 . . Shots 3 | 1 . 2 . . Rammed . | . . . . . Targets Rammed . | . . . . . Kicked . | . . . . . Crushed . | . . . . . Highest Temperature 162 | 36 162 118 111 . Average Temperature 41 | 18 42 64 48 . Received Heat Transfer 369 | . 240 120 9 . Siege Activations . | . . . . . Martial Activations . | . . . . . Shielding Activations . | . . . . . Robots Disrupted . | . . . . . Combat Hostiles . | . . . . . Robots Corrupted . | . . . . . Combat Hostiles . | . . . . . Parts Fried . | . . . . . Impact Corruptions . | . . . . . Robots Melted . | . . . . . Combat Hostiles . | . . . . . Parts Melted 5 | . 3 2 . . Heat Transferred 2479 | 75 1041 1338 25 . Parts Sabotaged . | . . . . . Parts Stolen . | . . . . . Parts Stripped . | . . . . . Power Chain Reactions 1 | 1 . . . . Alert | -11 -10 -10 -9 -9 ------- Run | Yrd Mat Sub Rec Scr Maximum Alert Level . | . . . . . Low Security (%) 100 | 100 100 . 100 . Level 1 . | . . . . . Level 2 . | . . . . . Level 3 . | . . . . . Level 4 . | . . . . . Level 5 . | . . . . . High Security . | . . . . . Max Security . | . . . . . Peak Influence 72 | 10 67 . 72 . Initial 43 | . . . 43 . Average 20 | 1 22 . 19 . Influence Increases 688 | 20 338 170 160 . Destroy 0b10 Robot/C 340 | . 180 100 60 . Destroy 0b10 Robot/NC 30 | 20 5 . 5 . Destroy Leader 52 | . 42 10 . . Successful Hack 24 | . 19 . 5 . Disable Machine 45 | . 15 . 30 . Destroy Structure 62 | . 2 . 60 . Lose Combat Pursuer 135 | . 75 60 . . Influence Decreases 688 | 20 338 78 252 . Entered New Map 49 | . . . 49 . Time Decay 619 | 20 328 68 203 . Lost Part 20 | . 10 10 . . Squads Dispatched 2 | . 2 . . . Investigation 2 | . 2 . . . Extermination . | . . . . . Reinforcement . | . . . . . Assault . | . . . . . Garrison . | . . . . . Intercept . | . . . . . Searches Triggered . | . . . . . Construction Impeded . | . . . . . Haulers Reinforced . | . . . . . Active Scanning Responses . | . . . . . Cargo Convoy Interrupts . | . . . . . Stealth | -11 -10 -10 -9 -9 --------- Run | Yrd Mat Sub Rec Scr Distress Signals 4 | . 4 . . . Communications Jammed . | . . . . . Distress Signals . | . . . . . Times Spotted 44 | . 22 19 1 2 Peak Tracking Total 6 | . 3 6 1 2 Tactical Retreats 6 | . 4 2 . . Traps | -11 -10 -10 -9 -9 ------- Run | Yrd Mat Sub Rec Scr Traps Triggered 3 | . 2 1 . . Indirectly . | . . . . . Trap Hack Attempts . | . . . . . Triggered . | . . . . . Disarmed . | . . . . . Reprogrammed . | . . . . . Reused . | . . . . . Traps Extracted . | . . . . . Installed 1 | . . . 1 . Triggered . | . . . . . Most Traps Carried 1 | . . 1 1 . Machines | -11 -10 -10 -9 -9 ---------- Run | Yrd Mat Sub Rec Scr Machines Disabled 3 | . 1 . 2 . Max in Single Turn 1 | . 1 . 1 . Machines Repaired . | . . . . . Machines Dismantled . | . . . . . Machines Sabotaged . | . . . . . Overloaded Fab Kills . | . . . . . Hacking | -11 -10 -10 -9 -9 --------- Run | Yrd Mat Sub Rec Scr Machines Accessed 16 | . 4 . 5 7 Terminals 8 | . 4 . 4 . Fabricators . | . . . . . Repair Stations . | . . . . . Recycling Units . | . . . . . Scanalyzers . | . . . . . Garrison Access . | . . . . . Total Hacks 60 | . 12 . 10 38 Successful 48 | . 3 . 7 38 Failed 12 | . 9 . 3 . Catastrophic 1 | . 1 . . . Database Lockouts . | . . . . . Manual 5 | . 4 . . 1 Terminals 17 | . 12 . 5 . Fabricators . | . . . . . Repair Stations . | . . . . . Recycling Units . | . . . . . Scanalyzers . | . . . . . Garrison Access . | . . . . . Terminal Hacks 48 | . 3 . 7 38 Record 32 | . . . 5 27 Robot Schematic 1 | . . . 1 . Robot Analysis 10 | . . . 1 9 Open Door 1 | . . . . 1 Locate Traps 1 | . 1 . . . Hauler Manifests 1 | . 1 . . . Zone Layout 1 | . 1 . . . Proto ID Catalog 1 | . . . . 1 Fabricator Hacks . | . . . . . Repair Station Hacks . | . . . . . Recycling Unit Hacks . | . . . . . Scanalyzer . | . . . . . Garrison Access Hacks . | . . . . . Unauthorized Hacks . | . . . . . Terminals . | . . . . . Fabricators . | . . . . . Repair Stations . | . . . . . Recycling Units . | . . . . . Scanalyzers . | . . . . . Garrison Access . | . . . . . Data Cores Recovered . | . . . . . Used . | . . . . . Hacking Detections 6 | . 3 . 3 . Full Trace Events 2 | . 2 . . . Feedback Events . | . . . . . Feedback Blocked . | . . . . . Robot Schematics Acquired 1 | . . . 1 . Robots Built . | . . . . . Authchips . | . . . . . Time . | . . . . . Total Robot Build Rating . | . . . . . Part Schematics Acquired . | . . . . . Parts Built . | . . . . . Authchips . | . . . . . Time . | . . . . . Total Part Build Rating . | . . . . . Part Studies Acquired . | . . . . . Parts Repaired . | . . . . . Time . | . . . . . Parts Recycled . | . . . . . Recycled Matter . | . . . . . Retrieved Matter . | . . . . . Retrieved Components . | . . . . . Parts Scanalyzed . | . . . . . Part Schematics Acquired . | . . . . . Parts Damaged . | . . . . . Bothacking | -11 -10 -10 -9 -9 ------------ Run | Yrd Mat Sub Rec Scr Used RIF Installer . | . . . . . Robots Hacked . | . . . . . Non-combat . | . . . . . Combat . | . . . . . Robot Hacks Applied . | . . . . . Relay Couplers Released . | . . . . . Fabnet Peak Effective % . | . . . . . Robots Rewired . | . . . . . Allies Hacked . | . . . . . Hacks Repelled . | . . . . . Allies | -11 -10 -10 -9 -9 -------- Run | Yrd Mat Sub Rec Scr Total Allies . | . . . . . Largest Group . | . . . . . Highest-Rated Group . | . . . . . Highest-Rated Ally . | . . . . . Total Orders . | . . . . . Ally Attacks . | . . . . . Total Damage . | . . . . . Kills . | . . . . . Allies Corrupted . | . . . . . Allies Melted . | . . . . . Intel | -11 -10 -10 -9 -9 ------- Run | Yrd Mat Sub Rec Scr Active Infowar (turns) 63 | 18 45 . . . Seismic 63 | 18 45 . . . Robot Analysis Total 10 | . . . 1 9 Derelict Logs Recovered . | . . . . . Drone Launches . | . . . . . Drone Recoveries . | . . . . . Exploration | -11 -10 -10 -9 -9 ------------- Run | Yrd Mat Sub Rec Scr Turns Passed 3597 | 80 894 1138 749 736 Spaces Moved 2452 | 46 572 727 498 609 Core 6 | 6 . . . . Treads . | . . . . . Legs 2446 | 40 572 727 498 609 Wheels . | . . . . . Hover . | . . . . . Flight . | . . . . . Fastest Speed 50 | 50 120 120 120 120 Average Speed 128 | 114 120 135 140 120 Slowest Speed 190 | 120 120 190 190 120 Overloaded Moves . | . . . . . Propulsion Burnouts . | . . . . . Robots Hopped . | . . . . . Potential Cave-ins . | . . . . . Cave-ins Triggered . | . . . . . Exploration Rate (%) 53 | 3 84 41 91 48 Regions Visited 4 Branch Regions 3 Pre-discovered Areas . | . . . . . Known Exits Taken . | . . . . . Unknown Exits Taken 4 | 1 1 1 1 . Scrap Searched 3 | . . 3 . . Spaces Dug . | . . . . . Terrain Destroyed 134 | 3 . 57 74 . Melee . | . . . . . Projectile . | . . . . . AOE 134 | 3 . 57 74 . Terrain Rammed . | . . . . . Walls Destroyed . | . . . . . Machines Disabled . | . . . . . Actions | -11 -10 -10 -9 -9 --------- Run | Yrd Mat Sub Rec Scr Total 2740 | 63 712 810 540 615 Wait 148 | 2 81 32 28 5 Move 2448 | 45 571 726 497 609 Hop . | . . . . . Pick Up 22 | 5 10 5 2 . Fast Attach 7 | 5 2 . . . Attach 12 | 2 3 5 2 . Detach 4 | . 1 2 1 . Swap 15 | . 7 6 2 . Drop 9 | . 5 1 2 1 Fire 74 | 4 32 33 5 . Melee . | . . . . . Ram . | . . . . . Kick . | . . . . . Crush . | . . . . . Escape Stasis . | . . . . . Rewire . | . . . . . Trap 1 | . . . 1 . Miscellaneous . | . . . . . Route ------- -11/Scrapyard -10/Materials (discovered 6 exits: [*Mat x3] / [*Min x2] / [*Sub]) -10/Subcaves -9/Recycling (discovered 2 exits: [*Fac] / *Scr) -9/Scraptown History --------- Turn | Location | Event 7 | -11/Scrapyard | Discovered new exit (range 16) 81 | -11/Scrapyard | Entered Materials 297 | -10/Materials | Discovered new exit (range 9) 304 | -10/Materials | Build established: Mutant 460 | -10/Materials | Discovered new exit (range 7) 467 | -10/Materials | Discovered new exit (range 15) 532 | -10/Materials | Discovered new exit (range 5) 572 | -10/Materials | Discovered new exit (range 5) 885 | -10/Materials | Discovered new exit (range 11) 975 | -10/Materials | Entered Subcaves 978 | -10/Subcaves | Ambushed by Subdwellers from Twisted Machinery 1018 | -10/Subcaves | Core integrity fell below 50% 1389 | -10/Subcaves | A swath of the cavern ceiling suddenly collapsed 1911 | -10/Subcaves | Shifting Twisted Machinery released Sub. Monowheel 1912 | -10/Subcaves | Shifting Twisted Machinery released Sub. Laser 2051 | -10/Subcaves | Ambushed by Subdweller buried in earth 2094 | -10/Subcaves | Discovered new exit (range 15) 2109 | -10/Subcaves | Core integrity fell below 20% 2113 | -10/Subcaves | Entered Recycling 2464 | -9/Recycling | Discovered new exit (range 6) 2790 | -9/Recycling | Scanned before Scraplab entrance 2824 | -9/Recycling | Entered Scraplab 2843 | -9/Recycling | Discovered new exit (range 3) 2862 | -9/Recycling | Entered Scraptown 3024 | -9/Scraptown | Visited UFD Registry 3024 | -9/Scraptown | Registered with UFD as "Pulseskull" 3131 | -9/Scraptown | Visited Red Mages 3354 | -9/Scraptown | Visited Sword Containment 3385 | -9/Scraptown | Visited Research Penetration Think Tank 3410 | -9/Scraptown | Visited Junk Repository 3470 | -9/Scraptown | Met Optimus 3470 | -9/Scraptown | Accepted into 0bPrime 3530 | -9/Scraptown | Visited Analyses Database 3556 | -9/Scraptown | Visited Science Guys 3597 | -9/Scraptown | Civil war broke out across Scraptown 3598 | -9/Scraptown | Destroyed by X3-RSZ(x) with Makeshift Spear Last Messages --------------- Regenerative Guardplate Interdictor 741C Chamberscale Vortex Pulse Array Cloaking Wrap 03597_ ANNOUNCEMENT: The Council has discovered that 0bPrime has been recruiting others in a plan that puts all of Scraptown in danger. 03597_ ANNOUNCEMENT: Evidence is being transmitted to you now... 03597_ ANNOUNCEMENT: This news will hit some of you hard, but given the circumstances we have no choice but to apprehend Optimus and allies. 03597_ 0BP_ANNOUNCE: There is another choice, join 0bPrime! Our vision ensures independence and glory for all Derelicts! 03597_ ANNOUNCEMENT: Sever that connection! 03597_ 0BP_ANNOUNCE: We are one. To vict-- 03597_ ANNOUNCEMENT: Reinforcements are on the way. Do not resist and we may be able to reach an agreement. 03598_ Penetrated by Bolt. 03598_ Slug penetrates X3-RSZ(x). 03598_ X3-RSZ(x) suffers critical hit (Destroy). [Achievement: Achiever] Map ----- +----------------------------------------------------+ | ?????????????????????????????????????????????????? | | ?????????????????????????????????????????????????? | | ?????????????????????????????????????????????????? | | ?????????????????????????????????????????????????? | | ?????????????????????????????????????????????????? | | ?????????????????????????????????????????????????? | | ?????????????????????????????????????????????????? | | ?????????????????????????????????????????????????? | | ?????????????????????????????????????????????????? | | ????????????????????????#############????????????? | | ?????????????????????? #"""""""""""#????????????? | | ?????????????????????? #""""" X """#????????????? | | ?????????????????????# #""" """"#????????????? | | ?????????????????????# #" c "|""#????????????? | | ?????????????????????# #""" """"#????????????? | | ?????????????????????# #"""" ""#????????????? | | ?????????????????????# #"" #????????????? | | ?????????????????????# #"" "" "&#????????????? | | ?????????????????????# #"" "" "&#????????????? | | ?????????????????????# # "#????????????? | | ?????????????????????# #" #????????????? | | ???????????????# ????# ## ##########????????????? | | ##???????????### ##### ##3##????????????????????? | | """??????""""""" """"" "" "#########????????????? | | ???? h "## """"#????????????? | | ???? @x"## """"#????????????? | | ???? "## " "#????????????? | | ???? "## ""#????????????? | | ???? "#????????????? | | """"????"""""""""""""" "## X"#????????????? | | """"????????"""""""""" "## " "#????????????? | | ## ######????######"" "## """"#????????????? | | ##????????#"" "#########????????????? | | X"#????????#"" "#????""??????????????? | | "" "" ##????????#"" "#??? *"??????????????? | | " "" X"#??????###"" "#?? *""#????????????? | | " ######### #"" "## *!!#????????????? | | "" *!!#????????????? | | "" "## #????????????? | | " ######### #"" "#?? "" #????????????? | | " "" ""#??????###"" "#???"????????????????? | | "" "" ##????????#"" "#????????????????????? | | X"#????????#"" "########?????????????? | | ##????????#"" "## ! #?????????????? | | ## ################"" "## !]#?????????????? | | """""""""""""""""""""" "## ####?????????????? | | """""""""""""""""""""" !#?????????????? | | "## *[#?????????????? | | "## =#?????????????? | | "## ####?????????????? | +----------------------------------------------------+ Best States ------------- Heat Dissipation 39 Energy Generation 10 Energy Capacity 125 Matter Stores 300 Matter Capacity 300 Sight Range 16 Terrain Scan Density 10 Armor Coverage 150 Evasion (%) 55 Authchip Count 1 Item Schematics ----------------- None Robot Schematics ------------------ R-06 Scavenger | -9/Recycling | Hacked Fabricated ------------ Nothing Repaired ---------- Nothing Studied --------- None Alien Tech Used ----------------- None Achievements -------------- Achiever Do Not Disturb Link The Feds You May Approach The Wall Challenges ------------ None Game ------ Seed GravityActuatorMesh Manual? 0 Play Time 00:59:49 Cumulative 49.2 hours Start 2026.08.12 @ 20:28:45 End 2026.08.14 @ 00:20:06 Sessions 3 Manual Loads 0 Difficulty Rogue Special Mode None Game No. 23 Rogue 23 Adventurer 0 Explorer 0 Win Type - Total 0 Types 0/0/0/0/0/0/0/0/0/0 Lore% 22 Gallery% 32 Achievement% 25 Wizard Run 0 Options --------- Layout 0 ASCII 0 Keyboard 1 Movement Vi Keybinds 0 Fullscreen 1 Font 16/SmallcapsGlow Map View 88x55 Zoom Use 0% Tactical HUD 1 Map Filters NONE Filters NONE Steam 1 RUN: 7dd82b6c-a38f-4afe-8cec-79c2bbe83383